fUSD/lending_fUSD_20250502
["ID","MTS","AMOUNT","RATE_DAILY","PERIOD"]
[359621530,1746189032356,-1144.4654,0.00019679,2]
[359621531,1746189032366,-3984.2062,0.00019679,2]
[359621532,1746189032376,-1008.8146,0.00019679,2]
[359621533,1746189032386,-500.0,0.0001968,2]
[359621534,1746189032396,-1000.0,0.0001968,2]
[359621535,1746189032405,-1118.0371,0.0001968,2]
[359621536,1746189032415,-676.6285,0.00019681,2]
[359621537,1746189032426,-1248.962468,0.00019703,2]
[359621538,1746189032436,-150.0,0.00019726,2]
[359621539,1746189032446,-1248.962468,0.00019727,2]
[359621540,1746189032455,-150.0,0.00019728,2]
[359621541,1746189032465,-150.0,0.00019729,2]
[359621542,1746189032475,-150.0,0.00019733,2]
[359621543,1746189032486,-150.0,0.00019733,2]
[359621544,1746189032496,-150.0,0.00019737,2]
[359621545,1746189032506,-150.0,0.00019752,2]
[359621546,1746189032516,-1248.962468,0.00019752,2]
[359621547,1746189032526,-150.0,0.00019771,2]
[359621548,1746189032536,-557.08252322,0.00019773,2]
[359621549,1746189032545,-500.0,0.00019773,2]
[359621550,1746189032555,-608.37086299,0.00019773,2]
[359621551,1746189032564,-500.0,0.00019773,2]
[359621552,1746189032574,-295.79723047,0.00019773,2]
[359621553,1746189032584,-150.0,0.00019775,2]
[359621554,1746189032593,-1248.962468,0.00019777,2]
[359621555,1746189032603,-366.10670828,0.00019777,2]
[359621556,1746189032612,-500.0,0.00019777,2]
[359621557,1746189032622,-279.52508154,0.00019777,2]
[359621558,1746189032633,-500.0,0.00019777,2]
[359621559,1746189032642,-500.0,0.00019777,2]
[359621561,1746189032652,-500.0,0.00019777,2]
[359621563,1746189032662,-584.12871928,0.00019777,2]
[359621565,1746189032671,-521.08,0.00019777,2]
[359621567,1746189032682,-716.61,0.00019777,2]
[359621569,1746189032691,-581.46,0.00019777,2]
[359621571,1746189032700,-450.0,0.00019777,2]
[359621573,1746189032708,-450.0,0.00019777,2]
[359621575,1746189032717,-601.52,0.00019777,2]
[359621577,1746189032726,-450.0,0.00019777,2]
[359621579,1746189032739,-479.26,0.00019777,2]
[359621581,1746189032748,-922.23,0.00019777,2]
[359621582,1746189032758,-450.0,0.00019777,2]
[359621584,1746189032767,-877.24,0.00019777,2]
[359621585,1746189032787,-450.0,0.00019777,2]
[359621586,1746189032797,-452.86,0.00019777,2]
[359621587,1746189032807,-1061.75,0.00019777,2]
[359621588,1746189032816,-450.0,0.00019777,2]
[359621589,1746189032825,-560.34,0.00019777,2]
[359621590,1746189032835,-9498.74,0.00019777,2]
[359621591,1746189032844,-450.0,0.00019777,2]
[359621592,1746189032854,-450.0,0.00019777,2]
[359621593,1746189032863,-450.0,0.00019777,2]
[359621594,1746189032873,-803.41,0.00019777,2]
[359621595,1746189032882,-957.68,0.00019777,2]
[359621596,1746189032892,-574.01813052,0.00019777,2]
[359621597,1746189032914,-254.16186948,0.00019777,2]
[359621598,1746189032925,-450.0,0.00019777,2]
[359621599,1746189032934,-450.0,0.00019777,2]
[359621600,1746189032944,-563.33,0.00019777,2]
[359621601,1746189032953,-450.0,0.00019777,2]
[359621602,1746189032963,-450.0,0.00019777,2]
[359621603,1746189032972,-450.0,0.00019777,2]
[359621604,1746189032982,-450.0,0.00019777,2]
[359621605,1746189032994,-427.18430552,0.00019777,2]
[359621606,1746189033003,-671.954655,0.00019777,2]
[359621607,1746189033013,-425.08128628,0.00019778,2]
[359621608,1746189033026,-24.91871372,0.00019778,2]
[359621610,1746189033038,-450.0,0.00019778,2]
[359621612,1746189033048,-450.0,0.00019778,2]
[359621614,1746189033059,-450.0,0.00019778,2]
[359621616,1746189033070,-27.01044634,0.00019778,2]
[359621884,1746189039407,-2004.51,0.00019777,2]
[359621885,1746189039418,-450.0,0.00019777,2]
[359621886,1746189039428,-450.0,0.00019777,2]
[359621887,1746189039438,-422.98955366,0.00019778,2]
[359621888,1746189039447,-367.50107739,0.00019778,2]
[359621889,1746189039469,-164.69892261,0.00019778,2]
[359621890,1746189039479,-572.27,0.00019778,2]
[359621891,1746189039488,-300.0,0.00019778,2]
[359621892,1746189039499,-450.0,0.00019778,2]
[359621893,1746189039508,-450.0,0.00019778,2]
[359621894,1746189039518,-450.0,0.00019778,2]
[359621895,1746189039527,-450.0,0.00019778,2]
[359621896,1746189039537,-355.65122195,0.00019778,2]
[359621897,1746189039547,-450.0,0.00019778,2]
[359621898,1746189039557,-250.0,0.00019778,2]
[359621899,1746189039566,-468.53,0.00019778,2]
[359621900,1746189039576,-450.0,0.00019778,2]
[359621901,1746189039585,-450.0,0.00019778,2]
[359621902,1746189039595,-450.0,0.00019778,2]
[359621903,1746189039604,-550.36,0.00019778,2]
[359621904,1746189039614,-334.52640544,0.00019778,2]
[359621905,1746189039702,-378.24359456,0.00019778,2]
[359621906,1746189039712,-450.0,0.00019778,2]
[359621907,1746189039721,-62.30175823,0.00019778,2]
[359622000,1746189040669,-387.69824177,0.00019778,2]
[359622002,1746189040678,-390.10430302,0.00019778,2]
[359622004,1746189040690,-59.89569698,0.00019778,2]
[359622006,1746189040700,-544.91,0.00019778,2]
[359622008,1746189040710,-450.0,0.00019778,2]
[359622010,1746189040719,-450.0,0.00019778,2]
[359622012,1746189040729,-450.0,0.00019778,2]
[359622014,1746189040738,-450.0,0.00019778,2]
[359622016,1746189040749,-450.0,0.00019778,2]
[359622018,1746189040759,-450.0,0.00019778,2]
[359622020,1746189040770,-482.91,0.00019778,2]
[359622022,1746189040780,-870.743717,0.00019778,2]
[359622024,1746189040789,-450.0,0.00019778,2]
[359622026,1746189040799,-450.0,0.00019778,2]
[359622028,1746189040809,-450.0,0.00019778,2]
[359622030,1746189040819,-712.33,0.00019778,2]
[359622032,1746189040829,-498.45,0.00019778,2]
[359622034,1746189040838,-452.76,0.00019778,2]
[359622036,1746189040848,-556.87,0.00019778,2]
[359622038,1746189040858,-589.37,0.00019778,2]
[359622040,1746189040867,-450.0,0.00019778,2]
[359622042,1746189040877,-450.0,0.00019778,2]
[359622044,1746189040887,-450.0,0.00019778,2]
[359622046,1746189040896,-450.0,0.00019778,2]
[359622048,1746189040906,-450.0,0.00019778,2]
[359622050,1746189040916,-450.0,0.00019778,2]
[359622052,1746189040925,-695.0,0.00019778,2]
[359622054,1746189040935,-578.24,0.00019778,2]
[359622056,1746189040945,-150.0,0.00019778,2]
[359622057,1746189040954,-697.28,0.00019778,2]
[359622060,1746189040964,-539.56,0.00019778,2]
[359622062,1746189040975,-450.0,0.00019778,2]
[359622063,1746189040984,-450.0,0.00019778,2]
[359622065,1746189040996,-654.53,0.00019778,2]
[359622068,1746189041006,-450.0,0.00019778,2]
[359622070,1746189041015,-450.0,0.00019778,2]
[359622072,1746189041028,-442.99369572,0.00019778,2]
[359622078,1746189041078,-84.59630428,0.00019778,2]
[359622080,1746189041089,-450.0,0.00019778,2]
[359622082,1746189041099,-450.0,0.00019778,2]
[359622084,1746189041108,-356.35994099,0.00019778,2]
[359622086,1746189041118,-1217.92,0.00019778,2]
[359622088,1746189041127,-450.0,0.00019778,2]
[359622090,1746189041137,-450.0,0.00019778,2]
[359622092,1746189041146,-471.5,0.00019778,2]
[359622094,1746189041156,-501.05,0.00019778,2]
[359622096,1746189041166,-450.0,0.00019778,2]
[359622098,1746189041176,-450.0,0.00019778,2]
[359622100,1746189041185,-549.59,0.00019778,2]
[359622102,1746189041194,-450.0,0.00019778,2]
[359622104,1746189041203,-397.26437084,0.00019778,2]
[359622349,1746189043850,-450.0,0.00019777,2]
[359622350,1746189043862,-450.0,0.00019777,2]
[359622351,1746189043872,-52.73562916,0.00019778,2]
[359622352,1746189043881,-209.51436084,0.00019778,2]
[359622363,1746189044026,-240.48563916,0.00019778,2]
[359622365,1746189044038,-508.32,0.00019778,2]
[359622367,1746189044047,-450.0,0.00019778,2]
[359622369,1746189044057,-450.0,0.00019778,2]
[359622371,1746189044067,-450.0,0.00019778,2]
[359622373,1746189044076,-450.0,0.00019778,2]
[359622375,1746189044087,-450.0,0.00019778,2]
[359622377,1746189044096,-474.72,0.00019778,2]
[359622379,1746189044106,-450.0,0.00019778,2]
[359622381,1746189044115,-450.0,0.00019778,2]
[359622383,1746189044124,-450.0,0.00019778,2]
[359622385,1746189044133,-576.85,0.00019778,2]
[359622386,1746189044143,-450.0,0.00019778,2]
[359622388,1746189044152,-556.59,0.00019778,2]
[359622390,1746189044162,-547.07,0.00019778,2]
[359622392,1746189044172,-566.93,0.00019778,2]
[359622394,1746189044181,-150.0,0.00019778,2]
[359622396,1746189044191,-450.0,0.00019778,2]
[359622398,1746189044200,-450.0,0.00019778,2]
[359622400,1746189044210,-450.0,0.00019778,2]
[359622402,1746189044220,-792.27,0.00019778,2]
[359622404,1746189044229,-450.0,0.00019778,2]
[359622406,1746189044239,-503.49238291,0.00019778,2]
[359622408,1746189044250,-450.0,0.00019778,2]
[359622410,1746189044261,-631.2,0.00019778,2]
[359622412,1746189044276,-450.0,0.00019778,2]
[359622414,1746189044289,-450.0,0.00019778,2]
[359622416,1746189044301,-1763.72,0.00019778,2]
[359622418,1746189044312,-450.0,0.00019778,2]
[359622420,1746189044323,-450.0,0.00019778,2]
[359622422,1746189044333,-450.0,0.00019778,2]
[359622424,1746189044343,-600.31,0.00019778,2]
[359622426,1746189044352,-450.0,0.00019778,2]
[359622428,1746189044362,-450.0,0.00019778,2]
[359622430,1746189044372,-450.0,0.00019778,2]
[359622432,1746189044382,-450.0,0.00019778,2]
[359622434,1746189044392,-450.0,0.00019778,2]
[359622436,1746189044402,-450.0,0.00019778,2]
[359622438,1746189044412,-831.44,0.00019778,2]
[359622440,1746189044422,-544.07,0.00019778,2]
[359622442,1746189044432,-450.0,0.00019778,2]
[359622444,1746189044442,-450.0,0.00019778,2]
[359622446,1746189044451,-524.8,0.00019778,2]
[359622448,1746189044461,-450.0,0.00019778,2]
[359622450,1746189044470,-1393.12,0.00019778,2]
[359622451,1746189044480,-450.0,0.00019778,2]
[359622453,1746189044489,-450.0,0.00019778,2]
[359622455,1746189044501,-731.2,0.00019778,2]
[359622458,1746189044511,-888.29,0.00019778,2]
[359622460,1746189044521,-450.0,0.00019778,2]
[359622462,1746189044531,-733.12,0.00019778,2]
[359622464,1746189044540,-450.0,0.00019778,2]
[359622466,1746189044550,-1023.47,0.00019778,2]
[359622468,1746189044559,-689.42,0.00019778,2]
[359622470,1746189044568,-450.0,0.00019778,2]
[359622472,1746189044577,-450.0,0.00019778,2]
[359622474,1746189044586,-758.29,0.00019778,2]
[359622476,1746189044595,-450.0,0.00019778,2]
[359622478,1746189044605,-630.23,0.00019778,2]
[359622480,1746189044615,-450.0,0.00019778,2]
[359622482,1746189044624,-450.0,0.00019778,2]
[359622484,1746189044634,-450.0,0.00019778,2]
[359622486,1746189044644,-450.0,0.00019778,2]
[359622488,1746189044653,-837.2,0.00019778,2]
[359622490,1746189044663,-450.0,0.00019778,2]
[359622492,1746189044673,-450.0,0.00019778,2]
[359622494,1746189044682,-450.0,0.00019778,2]
[359622496,1746189044691,-450.0,0.00019778,2]
[359622497,1746189044700,-450.0,0.00019778,2]
[359622499,1746189044709,-450.0,0.00019778,2]
[359622501,1746189044719,-450.0,0.00019778,2]
[359622503,1746189044728,-450.0,0.00019778,2]
[359622505,1746189044738,-450.0,0.00019778,2]
[359622507,1746189044748,-450.0,0.00019778,2]
[359622509,1746189044758,-450.0,0.00019778,2]
[359622511,1746189044767,-450.0,0.00019778,2]
[359622513,1746189044777,-450.0,0.00019778,2]
[359622515,1746189044787,-854.48,0.00019778,2]
[359622517,1746189044797,-450.0,0.00019778,2]
[359622519,1746189044807,-450.0,0.00019778,2]
[359622521,1746189044817,-450.0,0.00019778,2]
[359622523,1746189044827,-698.32,0.00019778,2]
[359622525,1746189044836,-710.97,0.00019778,2]
[359622527,1746189044845,-450.0,0.00019778,2]
[359622529,1746189044855,-450.0,0.00019778,2]
[359622530,1746189044864,-473.32,0.00019778,2]
[359622532,1746189044875,-770.62,0.00019778,2]
[359622534,1746189044884,-509.72,0.00019778,2]
[359622536,1746189044894,-604.12,0.00019778,2]
[359622538,1746189044903,-320.85314576,0.00019778,2]
[359622684,1746189046352,-550.2,0.00019777,2]
[359622685,1746189046362,-129.14685424,0.00019778,2]
[359622686,1746189046371,-417.41624719,0.00019778,2]
[359622687,1746189046383,-32.58375281,0.00019778,2]
[359622688,1746189046392,-450.0,0.00019778,2]
[359622690,1746189046402,-450.0,0.00019778,2]
[359622692,1746189046411,-594.41,0.00019778,2]
[359622694,1746189046421,-450.0,0.00019778,2]
[359622696,1746189046430,-450.0,0.00019778,2]
[359622698,1746189046439,-450.0,0.00019778,2]
[359622700,1746189046449,-450.0,0.00019778,2]
[359622702,1746189046458,-450.0,0.00019778,2]
[359622704,1746189046468,-450.0,0.00019778,2]
[359622706,1746189046478,-450.0,0.00019778,2]
[359622708,1746189046488,-450.0,0.00019778,2]
[359622710,1746189046499,-711.37,0.00019778,2]
[359622712,1746189046509,-509.12590293,0.00019778,2]
[359622714,1746189046521,-125.09409707,0.00019778,2]
[359622716,1746189046531,-1220.78,0.00019778,2]
[359622718,1746189046540,-569.78572216,0.00019778,2]
[359622720,1746189046550,-548.37,0.00019778,2]
[359622722,1746189046560,-450.0,0.00019778,2]
[359622724,1746189046570,-450.0,0.00019778,2]
[359622726,1746189046580,-450.0,0.00019778,2]
[359622728,1746189046589,-450.0,0.00019778,2]
[359622730,1746189046599,-527.51,0.00019778,2]
[359622732,1746189046608,-904.76,0.00019778,2]
[359622734,1746189046617,-450.0,0.00019778,2]
[359622736,1746189046627,-450.0,0.00019778,2]
[359622738,1746189046636,-450.0,0.00019778,2]
[359622740,1746189046646,-743.22,0.00019778,2]
[359622742,1746189046655,-450.0,0.00019778,2]
[359622744,1746189046665,-1534.54,0.00019778,2]
[359622746,1746189046674,-450.0,0.00019778,2]
[359622748,1746189046683,-248.07305589,0.00019778,2]
[359622751,1746189046708,-201.92694411,0.00019778,2]
[359622753,1746189046717,-450.0,0.00019778,2]
[359622755,1746189046727,-1013.21,0.00019778,2]
[359622757,1746189046736,-450.0,0.00019778,2]
[359622759,1746189046746,-450.0,0.00019778,2]
[359622761,1746189046757,-3274.68376859,0.00019778,2]
[359622765,1746189046787,-1843.58623141,0.00019778,2]
[359622767,1746189046796,-450.0,0.00019778,2]
[359622769,1746189046806,-450.0,0.00019778,2]
[359622771,1746189046816,-505.20661315,0.00019778,2]
[359622774,1746189046840,-76.20338685,0.00019778,2]
[359622776,1746189046850,-450.0,0.00019778,2]
[359622778,1746189046860,-450.0,0.00019778,2]
[359622780,1746189046870,-450.0,0.00019778,2]
[359622783,1746189046880,-450.0,0.00019778,2]
[359622784,1746189046890,-450.0,0.00019778,2]
[359622787,1746189046900,-834.64,0.00019778,2]
[359622789,1746189046910,-343.83842068,0.00019778,2]
[359622792,1746189046936,-592.28157932,0.00019778,2]
[359622794,1746189046946,-146.02687982,0.00019778,2]
[359622796,1746189046958,-303.97312018,0.00019778,2]
[359622798,1746189046968,-670.51,0.00019778,2]
[359622800,1746189046978,-1742.68000442,0.00019778,2]
[359622889,1746189084032,-174.17,0.00019457,2]
[359622890,1746189084927,340.0,0.00032877,60]
[359622894,1746189380983,4251.77,0.00018763,2]
[359622895,1746189520330,1000.0,0.00018759,2]
[359622896,1746189714612,405.95007524,0.000328,60]
[359622897,1746189773012,991.18,0.00016845,2]
[359622898,1746189773082,991.18,0.00019109,2]
[359622899,1746189844564,-239.16,0.00019372,2]
[359622900,1746189847572,-10.84,0.00019372,2]
[359622902,1746189912399,652.311,0.00032877,60]
[359622903,1746189921178,900.0,0.00032877,60]
[359622904,1746189951441,1050.0,0.00032877,60]
[359622905,1746189963104,1000.0,0.00032877,60]
[359622906,1746189972369,1000.0,0.00032877,60]
[359622908,1746189978724,1000.0,0.00032877,60]
[359622911,1746190132913,-206.28198214,0.00019419,2]
[359622913,1746190171043,2000.0,0.00032877,60]
[359622919,1746190231400,-150.0,0.00019503,2]
[359622920,1746190231410,-150.0,0.00019503,2]
[359622921,1746190231420,-200.0,0.00019504,2]
[359622922,1746190231429,-150.0,0.00019504,2]
[359622923,1746190231438,-150.0,0.00019506,2]
[359622924,1746190231448,-150.0,0.00019508,2]
[359622925,1746190231457,-150.0,0.00019511,2]
[359622926,1746190231466,-577.62186062,0.00019516,2]
[359622927,1746190231477,-150.0,0.00019516,2]
[359622928,1746190231486,-150.0,0.00019519,2]
[359622929,1746190231495,-150.0,0.00019523,2]
[359622930,1746190231505,-150.0,0.00019525,2]
[359622931,1746190231514,-150.0,0.00019527,2]
[359622932,1746190231523,-150.0,0.00019527,2]
[359622933,1746190231533,-150.0,0.0001953,2]
[359622934,1746190231543,-150.0,0.00019543,2]
[359622935,1746190231553,-206.28198214,0.00019544,2]
[359622936,1746190231563,-150.0,0.00019546,2]
[359622937,1746190231573,-150.0,0.00019546,2]
[359622938,1746190231584,-150.0,0.00019547,2]
[359622939,1746190231594,-150.0,0.00019547,2]
[359622940,1746190231604,-150.0,0.00019554,2]
[359622941,1746190231614,-150.0,0.00019555,2]
[359622942,1746190231623,-150.0,0.00019556,2]
[359622943,1746190231633,-150.0,0.00019568,2]
[359622944,1746190231643,-150.0,0.00019569,2]
[359622945,1746190231652,-150.0,0.00019571,2]
[359622946,1746190231662,-150.0,0.00019582,2]
[359622947,1746190231672,-150.0,0.00019583,2]
[359622948,1746190231682,-300.0,0.00019583,2]
[359622949,1746190231691,-150.0,0.00019585,2]
[359622950,1746190231701,-300.0,0.00019585,2]
[359622951,1746190231711,-1200.0,0.00019585,2]
[359622952,1746190231722,-150.0,0.00019587,2]
[359622953,1746190231732,-150.0,0.00019591,2]
[359622954,1746190231742,-150.0,0.00019591,2]
[359622955,1746190231752,-150.0,0.00019592,2]
[359622956,1746190231764,-150.0,0.00019602,2]
[359622957,1746190231773,-150.0,0.00019606,2]
[359622958,1746190231783,-150.0,0.00019606,2]
[359622959,1746190231792,-150.0,0.00019609,2]
[359622960,1746190231802,-150.0,0.0001962,2]
[359622961,1746190231811,-150.0,0.00019626,2]
[359622962,1746190231820,-150.0,0.00019628,2]
[359622963,1746190231830,-150.0,0.00019637,2]
[359622964,1746190231841,-150.0,0.00019638,2]
[359622965,1746190231851,-150.0,0.00019639,2]
[359622966,1746190231860,-150.0,0.0001964,2]
[359622967,1746190231870,-150.0,0.00019642,2]
[359622968,1746190231879,-150.0,0.00019642,2]
[359622969,1746190231888,-150.0,0.00019642,2]
[359622970,1746190231898,-150.0,0.00019642,2]
[359622971,1746190231908,-150.0,0.00019648,2]
[359622972,1746190231917,-150.0,0.00019649,2]
[359622973,1746190231928,-150.0,0.00019649,2]
[359622974,1746190231938,-150.0,0.00019659,2]
[359622975,1746190231948,-300.0,0.00019659,2]
[359622976,1746190231957,-150.0,0.00019667,2]
[359622977,1746190231966,-150.0,0.00019667,2]
[359622978,1746190231977,-150.0,0.00019667,2]
[359622979,1746190231987,-206.28198214,0.00019669,2]
[359622981,1746190231996,-617.2069,0.00019677,2]
[359622983,1746190232004,-160.62286689,0.00019677,2]
[359622985,1746190232014,-785.3393265,0.00019677,2]
[359622987,1746190232023,-167.85162715,0.00019677,2]
[359622989,1746190232033,-229.77016925,0.00019677,2]
[359622991,1746190232042,-1000.0,0.00019678,2]
[359622993,1746190232051,-169.1458,0.00019678,2]
[359622995,1746190232061,-150.0,0.00019685,2]
[359622997,1746190232071,-150.0,0.00019691,2]
[359622999,1746190232081,-150.0,0.00019691,2]
[359623001,1746190232090,-150.0,0.00019697,2]
[359623002,1746190232099,-150.0,0.00019697,2]
[359623003,1746190232109,-785.33932641,0.00019702,2]
[359623004,1746190232119,-150.0,0.00019708,2]
[359623005,1746190232128,-300.0,0.00019708,2]
[359623006,1746190232138,-229.77016923,0.00019714,2]
[359623007,1746190232148,-177.43334521,0.00019715,2]
[359623008,1746190232158,-150.0,0.00019716,2]
[359623009,1746190232167,-150.0,0.00019719,2]
[359623010,1746190232177,-150.0,0.00019721,2]
[359623011,1746190232187,-785.33932641,0.00019727,2]
[359623012,1746190232197,-150.0,0.00019727,2]
[359623013,1746190232207,-150.0,0.00019732,2]
[359623014,1746190232217,-150.0,0.00019734,2]
[359623015,1746190232227,-150.0,0.00019735,2]
[359623016,1746190232237,-150.0,0.00019738,2]
[359623017,1746190232247,-150.0,0.00019742,2]
[359623018,1746190232257,-150.0,0.00019747,2]
[359623019,1746190232267,-150.0,0.00019751,2]
[359623020,1746190232276,-785.33932641,0.00019751,2]
[359623021,1746190232286,-229.77016923,0.00019751,2]
[359623022,1746190232296,-150.0,0.00019752,2]
[359623023,1746190232306,-150.0,0.00019753,2]
[359623024,1746190232315,-150.0,0.00019755,2]
[359623025,1746190232326,-150.0,0.00019761,2]
[359623026,1746190232337,-150.0,0.00019763,2]
[359623027,1746190232347,-329.29,0.00019766,2]
[359623028,1746190232356,-329.29,0.00019766,2]
[359623029,1746190232365,-329.29,0.00019766,2]
[359623030,1746190232375,-329.29,0.00019766,2]
[359623031,1746190232384,-329.29,0.00019766,2]
[359623032,1746190232394,-329.29,0.00019766,2]
[359623033,1746190232403,-329.29,0.00019766,2]
[359623034,1746190232412,-15681.9895235,0.00019766,2]
[359623035,1746190232421,-217.11897615,0.00019767,2]
[359623036,1746190232431,-150.0,0.00019767,2]
[359623037,1746190232440,-4046.0587251,0.00019768,2]
[359623038,1746190232450,-150.0,0.00019768,2]
[359623039,1746190232460,-39774.1262891,0.00019768,2]
[359623040,1746190232469,-58312.576,0.00019768,2]
[359623041,1746190232479,-3062.3215,0.00019768,2]
[359623042,1746190232488,-150.0,0.00019769,2]
[359623043,1746190232498,-150.0,0.0001977,2]
[359623044,1746190232507,-500.0,0.00019773,2]
[359623045,1746190232517,-302.60897016,0.00019773,2]
[359623046,1746190232526,-500.0,0.00019775,2]
[359623047,1746190232536,-195.66755708,0.00019775,2]
[359623048,1746190232545,-500.0,0.00019775,2]
[359623049,1746190232555,-500.0,0.00019775,2]
[359623050,1746190232564,-500.0,0.00019775,2]
[359623051,1746190232573,-408.67978741,0.00019775,2]
[359623052,1746190232582,-186.48852193,0.00019775,2]
[359623053,1746190232591,-450.0,0.00019776,2]
[359623054,1746190232601,-554.14,0.00019776,2]
[359623055,1746190232610,-363.83885994,0.00019776,2]
[359623056,1746190232620,-627.26,0.00019776,2]
[359623057,1746190232630,-450.0,0.00019776,2]
[359623058,1746190232641,-450.0,0.00019776,2]
[359623059,1746190232651,-643.11,0.00019776,2]
[359623060,1746190232661,-450.0,0.00019776,2]
[359623061,1746190232670,-1167.17,0.00019776,2]
[359623062,1746190232679,-451.85,0.00019776,2]
[359623063,1746190232689,-450.0,0.00019776,2]
[359623064,1746190232698,-450.0,0.00019776,2]
[359623065,1746190232707,-526.69,0.00019776,2]
[359623066,1746190232717,-512.37,0.00019776,2]
[359623067,1746190232727,-480.17,0.00019776,2]
[359623068,1746190232736,-487.14,0.00019776,2]
[359623069,1746190232745,-450.0,0.00019776,2]
[359623070,1746190232759,-450.0,0.00019776,2]
[359623071,1746190232771,-552.82,0.00019776,2]
[359623072,1746190232780,-450.0,0.00019776,2]
[359623073,1746190232789,-524.27,0.00019776,2]
[359623074,1746190232800,-450.0,0.00019776,2]
[359623075,1746190232810,-454.94,0.00019776,2]
[359623076,1746190232819,-450.0,0.00019776,2]
[359623077,1746190232829,-533.4,0.00019776,2]
[359623078,1746190232840,-450.0,0.00019776,2]
[359623079,1746190232850,-543.31,0.00019776,2]
[359623080,1746190232859,-1690.23,0.00019776,2]
[359623081,1746190232869,-450.0,0.00019776,2]
[359623082,1746190232878,-870.743717,0.00019776,2]
[359623083,1746190232887,-450.0,0.00019776,2]
[359623084,1746190232896,-450.0,0.00019776,2]
[359623085,1746190232905,-450.0,0.00019776,2]
[359623086,1746190232915,-450.0,0.00019776,2]
[359623087,1746190232925,-671.954655,0.00019776,2]
[359623088,1746190232934,-450.0,0.00019776,2]
[359623089,1746190232944,-575.3,0.00019776,2]
[359623090,1746190232954,-450.0,0.00019776,2]
[359623091,1746190232963,-796.8,0.00019776,2]
[359623092,1746190232973,-450.0,0.00019776,2]
[359623093,1746190232983,-502.94,0.00019776,2]
[359623094,1746190232992,-450.0,0.00019776,2]
[359623095,1746190233001,-521.4,0.00019776,2]
[359623096,1746190233011,-1335.08,0.00019776,2]
[359623097,1746190233020,-702.57,0.00019776,2]
[359623098,1746190233029,-450.0,0.00019776,2]
[359623099,1746190233038,-450.0,0.00019776,2]
[359623100,1746190233048,-851.28,0.00019776,2]
[359623101,1746190233057,-603.97,0.00019776,2]
[359623102,1746190233067,-450.0,0.00019776,2]
[359623103,1746190233076,-450.0,0.00019776,2]
[359623104,1746190233086,-450.0,0.00019776,2]
[359623105,1746190233096,-450.0,0.00019776,2]
[359623106,1746190233105,-802.32,0.00019776,2]
[359623107,1746190233115,-450.0,0.00019776,2]
[359623108,1746190233124,-450.0,0.00019776,2]
[359623109,1746190233133,-450.0,0.00019776,2]
[359623110,1746190233143,-450.0,0.00019776,2]
[359623111,1746190233153,-681.35,0.00019776,2]
[359623112,1746190233163,-450.0,0.00019776,2]
[359623113,1746190233173,-818.88,0.00019776,2]
[359623114,1746190233183,-450.0,0.00019776,2]